fUSD/lending_fUSD_20240319
["ID","MTS","AMOUNT","RATE_DAILY","PERIOD"]
[319596315,1710885091724,-988.62,0.00031232,2]
[319596316,1710885091733,-502.93,0.00031232,2]
[319596317,1710885091743,-3281.78,0.00031232,2]
[319596318,1710885091753,-10393.93,0.00031232,2]
[319596319,1710885091763,-887.69,0.00031232,2]
[319596320,1710885091773,-500.0,0.00031232,2]
[319596321,1710885091785,-2054.31,0.00031232,2]
[319596322,1710885091795,-1073.2,0.00031232,2]
[319596323,1710885091804,-500.0,0.00031232,2]
[319596324,1710885091814,-500.0,0.00031232,2]
[319596325,1710885091824,-500.0,0.00031232,2]
[319596326,1710885091833,-5676.82,0.00031232,2]
[319596327,1710885091845,-500.0,0.00031232,2]
[319596328,1710885091855,-2336.1,0.00031232,2]
[319596329,1710885091865,-784.81,0.00031232,2]
[319596330,1710885091875,-500.0,0.00031232,2]
[319596331,1710885091885,-2928.09,0.00031232,2]
[319596332,1710885091896,-958.78,0.00031232,2]
[319596333,1710885091907,-12462.52,0.00031232,2]
[319596334,1710885091917,-5305.03,0.00031232,2]
[319596335,1710885091927,-742.85,0.00031232,2]
[319596336,1710885091937,-6273.21,0.00031232,2]
[319596337,1710885091947,-500.0,0.00031232,2]
[319596338,1710885091957,-3248.64,0.00031232,2]
[319596339,1710885091966,-500.0,0.00031232,2]
[319596340,1710885091977,-7424.85,0.00031232,2]
[319596341,1710885091987,-8000.71,0.00031232,2]
[319596342,1710885091996,-500.0,0.00031232,2]
[319596343,1710885092005,-9028.78,0.00031232,2]
[319596344,1710885092015,-7152.27,0.00031232,2]
[319596345,1710885092026,-603.25,0.00031232,2]
[319596346,1710885092035,-920.58,0.00031232,2]
[319596347,1710885092046,-862.02,0.00031232,2]
[319596348,1710885092055,-11402.88,0.00031232,2]
[319596349,1710885092065,-5180.59,0.00031232,2]
[319596350,1710885092074,-1058.28,0.00031232,2]
[319596351,1710885092083,-500.0,0.00031232,2]
[319596352,1710885092094,-6676.62,0.00031232,2]
[319596353,1710885092104,-50748.97,0.00031232,2]
[319596354,1710885092113,-12563.76,0.00031232,2]
[319596355,1710885092122,-4392.06,0.00031232,2]
[319596356,1710885092132,-500.0,0.00031232,2]
[319596357,1710885092141,-500.0,0.00031232,2]
[319596358,1710885092151,-947.45,0.00031232,2]
[319596359,1710885092161,-994.47,0.00031232,2]
[319596360,1710885092170,-6289.47,0.00031232,2]
[319596361,1710885092180,-1127.56,0.00031232,2]
[319596362,1710885092189,-500.0,0.00031232,2]
[319596363,1710885092199,-500.0,0.00031232,2]
[319596364,1710885092209,-1554.32,0.00031232,2]
[319596365,1710885092219,-1563.9,0.00031232,2]
[319596366,1710885092229,-2538.59,0.00031232,2]
[319596367,1710885092238,-9279.39,0.00031232,2]
[319596368,1710885092247,-2973.35,0.00031232,2]
[319596369,1710885092256,-500.0,0.00031232,2]
[319596370,1710885092266,-1071.73,0.00031232,2]
[319596371,1710885092276,-1557.91,0.00031232,2]
[319596372,1710885092285,-500.0,0.00031232,2]
[319596373,1710885092294,-5460.3,0.00031232,2]
[319596374,1710885092304,-921.84,0.00031232,2]
[319596375,1710885092314,-1497.67,0.00031232,2]
[319596376,1710885092323,-549.68,0.00031232,2]
[319596377,1710885092333,-866.95,0.00031232,2]
[319596378,1710885092345,-500.0,0.00031232,2]
[319596379,1710885092354,-500.0,0.00031232,2]
[319596380,1710885092363,-23885.26,0.00031232,2]
[319596381,1710885092373,-6038.59,0.00031232,2]
[319596382,1710885092383,-34338.3,0.00031232,2]
[319596383,1710885092392,-2241.19,0.00031232,2]
[319596384,1710885092402,-870.15,0.00031232,2]
[319596385,1710885092412,-1003.35,0.00031232,2]
[319596386,1710885092421,-500.0,0.00031232,2]
[319596387,1710885092431,-5507.6,0.00031232,2]
[319596388,1710885092442,-5378.59,0.00031232,2]
[319596389,1710885092453,-615.59,0.00031232,2]
[319596390,1710885092466,-500.0,0.00031232,2]
[319596391,1710885092476,-681.39,0.00031232,2]
[319596392,1710885092487,-580.59023097,0.00031232,2]
[319596393,1710885092498,-3623.08,0.00031232,2]
[319596394,1710885092508,-500.0,0.00031232,2]
[319596395,1710885092519,-659.74,0.00031232,2]
[319596396,1710885092529,-500.0,0.00031232,2]
[319596397,1710885092540,-500.0,0.00031232,2]
[319596398,1710885092550,-1648.34,0.00031232,2]
[319596399,1710885092560,-7204.29,0.00031232,2]
[319596400,1710885092570,-500.0,0.00031232,2]
[319596401,1710885092580,-5688.06,0.00031232,2]
[319596402,1710885092591,-976.18,0.00031232,2]
[319596403,1710885092600,-1912.73,0.00031232,2]
[319596404,1710885092610,-3082.4,0.00031232,2]
[319596405,1710885092620,-2522.27,0.00031232,2]
[319596406,1710885092629,-6424.1,0.00031232,2]
[319596407,1710885092639,-1570.96,0.00031232,2]
[319596408,1710885092649,-500.0,0.00031232,2]
[319596409,1710885092658,-1409.47,0.00031232,2]
[319596410,1710885092668,-500.0,0.00031232,2]
[319596411,1710885092677,-2703.38,0.00031232,2]
[319596412,1710885092686,-151.0,0.00031232,7]
[319596413,1710885092696,-10351.23,0.00031232,2]
[319596414,1710885092706,-363.46511577,0.00031232,2]
[319596415,1710885092715,-723.42,0.00031232,2]
[319596416,1710885092725,-500.0,0.00031232,2]
[319596417,1710885092734,-3159.85,0.00031232,2]
[319596418,1710885092744,-19207.21,0.00031232,2]
[319596419,1710885092754,-1575.99,0.00031232,2]
[319596420,1710885092764,-3910.17,0.00031232,2]
[319596421,1710885092773,-989.66,0.00031232,2]
[319596422,1710885092782,-500.0,0.00031232,2]
[319596423,1710885092792,-2518.49,0.00031232,2]
[319596424,1710885092802,-500.0,0.00031232,2]
[319596425,1710885092811,-500.0,0.00031232,2]
[319596426,1710885092821,-602.98,0.00031232,2]
[319596427,1710885092831,-2902.62,0.00031232,2]
[319596428,1710885092842,-1081.46,0.00031232,2]
[319596429,1710885092851,-500.0,0.00031232,2]
[319596430,1710885092861,-996.99,0.00031232,2]
[319596431,1710885092870,-11316.17,0.00031232,2]
[319596432,1710885092879,-722.94,0.00031232,2]
[319596433,1710885092889,-21059.27,0.00031232,2]
[319596434,1710885092898,-1144.28,0.00031232,2]
[319596435,1710885092908,-500.0,0.00031232,2]
[319596436,1710885092917,-592.77,0.00031232,2]
[319596437,1710885092926,-3248.34,0.00031232,2]
[319596438,1710885092935,-611.45,0.00031232,2]
[319596439,1710885092945,-500.0,0.00031232,2]
[319596440,1710885092955,-500.0,0.00031232,2]
[319596441,1710885092964,-1214.02,0.00031232,2]
[319596442,1710885092974,-5044.94,0.00031232,2]
[319596443,1710885092984,-500.0,0.00031232,2]
[319596444,1710885092994,-500.0,0.00031232,2]
[319596445,1710885093003,-6225.21,0.00031232,2]
[319596446,1710885093012,-856.7,0.00031232,2]
[319596447,1710885093022,-608.72,0.00031232,2]
[319596448,1710885093031,-500.0,0.00031232,2]
[319596449,1710885093041,-1511.11,0.00031232,2]
[319596450,1710885093050,-1279.36,0.00031232,2]
[319596451,1710885093059,-500.0,0.00031232,2]
[319596452,1710885093069,-8737.55,0.00031232,2]
[319596453,1710885093078,-11752.03,0.00031232,2]
[319596454,1710885093087,-4482.5,0.00031232,2]
[319596455,1710885093097,-500.0,0.00031232,2]
[319596456,1710885093107,-1788.46,0.00031232,2]
[319596457,1710885093116,-500.0,0.00031232,2]
[319596458,1710885093125,-5316.22,0.00031232,2]
[319596459,1710885093135,-500.0,0.00031232,2]
[319596460,1710885093144,-22991.35,0.00031232,2]
[319596461,1710885093153,-1321.67,0.00031232,2]
[319596462,1710885093163,-1177.76,0.00031232,2]
[319596463,1710885093173,-518.08,0.00031232,2]
[319596464,1710885093182,-500.0,0.00031232,2]
[319596465,1710885093191,-505.75,0.00031232,2]
[319596466,1710885093212,-500.0,0.00031232,2]
[319596467,1710885093222,-2886.03,0.00031232,2]
[319596468,1710885093232,-1429.54,0.00031232,2]
[319596469,1710885093242,-500.0,0.00031232,2]
[319596470,1710885093252,-3473.42,0.00031232,2]
[319596471,1710885093262,-20562.17,0.00031232,2]
[319596472,1710885093272,-4026.93,0.00031232,2]
[319596473,1710885093282,-500.0,0.00031232,2]
[319596474,1710885093292,-805.12,0.00031232,2]
[319596475,1710885093302,-981.11,0.00031232,2]
[319596476,1710885093313,-500.0,0.00031232,2]
[319596477,1710885093323,-877.4,0.00031232,2]
[319596478,1710885093333,-1121.88,0.00031232,2]
[319596479,1710885093345,-836.09,0.00031232,2]
[319596480,1710885093355,-500.0,0.00031232,2]
[319596481,1710885093366,-12965.17,0.00031232,2]
[319596482,1710885093376,-8047.18,0.00031232,2]
[319596483,1710885093387,-4640.74,0.00031232,2]
[319596484,1710885093396,-6661.58,0.00031232,2]
[319596485,1710885093406,-500.0,0.00031232,2]
[319596486,1710885093419,-720.32,0.00031232,2]
[319596487,1710885093429,-500.0,0.00031232,2]
[319596488,1710885093438,-3306.12,0.00031232,2]
[319596489,1710885093448,-1406.25,0.00031232,2]
[319596490,1710885093462,-603.58,0.00031232,2]
[319596491,1710885093472,-500.0,0.00031232,2]
[319596492,1710885093482,-500.0,0.00031232,2]
[319596493,1710885093492,-1438.11,0.00031232,2]
[319596494,1710885093502,-6333.98,0.00031232,2]
[319596495,1710885093512,-26854.72,0.00031232,2]
[319596496,1710885093522,-2692.37,0.00031232,2]
[319596497,1710885093532,-614.48,0.00031232,2]
[319596498,1710885093542,-1298.71,0.00031232,2]
[319596499,1710885093552,-2847.31,0.00031232,2]
[319596500,1710885093562,-500.0,0.00031232,2]
[319596501,1710885093572,-1953.31,0.00031232,2]
[319596502,1710885093582,-521.8,0.00031232,2]
[319596503,1710885093593,-972.96,0.00031232,2]
[319596504,1710885093604,-500.0,0.00031232,2]
[319596505,1710885093613,-599.79,0.00031232,2]
[319596506,1710885093623,-1902.54,0.00031232,2]
[319596507,1710885093633,-1686.82,0.00031232,2]
[319596508,1710885093642,-673.97,0.00031232,2]
[319596509,1710885093652,-649.62,0.00031232,2]
[319596510,1710885093662,-26670.31,0.00031232,2]
[319596511,1710885093671,-395.33908213,0.00031232,2]
[319596512,1710885093681,-5843.77,0.00031232,2]
[319596513,1710885093690,-1828.95,0.00031232,2]
[319596514,1710885093699,-513.49643,0.00031232,7]
[319596515,1710885093709,-1109.32,0.00031232,2]
[319596516,1710885093719,-691.9,0.00031232,2]
[319596517,1710885093729,-1199.84,0.00031232,2]
[319596518,1710885093738,-1216.0,0.00031232,2]
[319596519,1710885093748,-438.27466491,0.00031232,2]
[319596520,1710885093757,-513.49643,0.00031232,7]
[319596521,1710885093767,-177.48552002,0.00031269,5]
[319596522,1710885093776,-465.52150157,0.00031503,2]
[319596523,1710885093785,-150.0,0.00031505,2]
[319596524,1710885093795,-150.0,0.00031505,2]
[319596525,1710885093804,-905.92,0.00031506,2]
[319596526,1710885093944,-760.8,0.00031506,2]
[319596527,1710885093956,-500.0,0.00031506,2]
[319596528,1710885093966,-500.0,0.00031506,2]
[319596529,1710885093976,-918.16,0.00031506,2]
[319596530,1710885093986,-1354.5,0.00031506,2]
[319596531,1710885093996,-500.0,0.00031506,2]
[319596532,1710885094006,-500.0,0.00031506,2]
[319596533,1710885094016,-150.0,0.00031506,2]
[319596534,1710885094025,-563.69,0.00031506,2]
[319596535,1710885094034,-553.29,0.00031506,2]
[319596536,1710885094044,-500.0,0.00031506,2]
[319596537,1710885094053,-500.0,0.00031506,2]
[319596538,1710885094062,-500.0,0.00031506,2]
[319596539,1710885094072,-500.0,0.00031506,2]
[319596540,1710885094081,-500.0,0.00031506,2]
[319596541,1710885094091,-576.34,0.00031506,2]
[319596542,1710885094100,-500.0,0.00031506,2]
[319596543,1710885094110,-500.0,0.00031506,2]
[319596544,1710885094119,-628.41,0.00031506,2]
[319596545,1710885094129,-500.0,0.00031506,2]
[319596546,1710885094138,-500.0,0.00031506,2]
[319596547,1710885094147,-500.0,0.00031506,2]
[319596548,1710885094156,-964.89,0.00031506,2]
[319596549,1710885094167,-620.13,0.00031506,2]
[319596550,1710885094177,-564.61,0.00031506,2]
[319596551,1710885094186,-786.01,0.00031506,2]
[319596552,1710885094195,-865.28,0.00031506,2]
[319596553,1710885094205,-500.0,0.00031506,2]
[319596554,1710885094215,-500.0,0.00031506,2]
[319596555,1710885094224,-500.0,0.00031506,2]
[319596556,1710885094233,-500.0,0.00031506,2]
[319596557,1710885094243,-529.43,0.00031506,2]
[319596558,1710885094253,-618.58,0.00031506,2]
[319596559,1710885094263,-470.99705929,0.00031506,2]
[319596560,1710885094272,-563.52,0.00031506,2]
[319596561,1710885094282,-500.0,0.00031506,2]
[319596562,1710885094292,-2015.12,0.00031506,2]
[319596563,1710885094301,-500.0,0.00031506,2]
[319596564,1710885094310,-500.0,0.00031506,2]
[319596565,1710885094320,-631.9,0.00031506,2]
[319596566,1710885094329,-681.13,0.00031506,2]
[319596567,1710885094338,-1086.99,0.00031506,2]
[319596568,1710885094347,-500.0,0.00031506,2]
[319596569,1710885094357,-500.0,0.00031506,2]
[319596570,1710885094367,-500.0,0.00031506,2]
[319596571,1710885094378,-500.0,0.00031506,2]
[319596572,1710885094388,-652.31,0.00031506,2]
[319596573,1710885094397,-1320.6,0.00031506,2]
[319596574,1710885094408,-1250.92,0.00031506,2]
[319596575,1710885094418,-1120.04,0.00031506,2]
[319596576,1710885094428,-500.0,0.00031506,2]
[319596577,1710885094439,-510.25,0.00031506,2]
[319596578,1710885094449,-921.3,0.00031506,2]
[319596579,1710885094461,-1041.72,0.00031506,2]
[319596580,1710885094471,-1043.25,0.00031506,2]
[319596581,1710885094480,-500.0,0.00031506,2]
[319596582,1710885094490,-256.12436797,0.00031506,2]
[319596583,1710885094500,-535.44,0.00031506,2]
[319596584,1710885094510,-500.0,0.00031506,2]
[319596585,1710885094519,-500.0,0.00031506,2]
[319596586,1710885094529,-500.0,0.00031506,2]
[319596587,1710885094538,-500.0,0.00031506,2]
[319596588,1710885094548,-500.0,0.00031506,2]
[319596589,1710885094557,-957.02,0.00031506,2]
[319596590,1710885094567,-549.6,0.00031506,2]
[319596591,1710885094576,-500.0,0.00031506,2]
[319596592,1710885094585,-500.0,0.00031506,2]
[319596593,1710885094595,-546.14,0.00031506,2]
[319596594,1710885094604,-500.0,0.00031506,2]
[319596595,1710885094614,-500.0,0.00031506,2]
[319596596,1710885094624,-983.01,0.00031506,2]
[319596597,1710885094633,-500.0,0.00031506,2]
[319596598,1710885094642,-500.0,0.00031506,2]
[319596599,1710885094652,-500.0,0.00031506,2]
[319596600,1710885094661,-500.0,0.00031506,2]
[319596601,1710885094670,-502.25,0.00031506,2]
[319596602,1710885094679,-583.52,0.00031506,2]
[319596603,1710885094688,-500.0,0.00031506,2]
[319596604,1710885094697,-500.0,0.00031506,2]
[319596605,1710885094706,-701.32,0.00031506,2]
[319596606,1710885094715,-845.97,0.00031506,2]
[319596607,1710885094725,-500.0,0.00031506,2]
[319596608,1710885094734,-604.6,0.00031506,2]
[319596609,1710885094743,-500.0,0.00031506,2]
[319596610,1710885094753,-626.44,0.00031506,2]
[319596611,1710885094762,-500.0,0.00031506,2]
[319596612,1710885094772,-500.0,0.00031506,2]
[319596613,1710885094782,-1296.65,0.00031506,2]
[319596614,1710885094791,-500.0,0.00031506,2]
[319596615,1710885094801,-1134.53,0.00031506,2]
[319596616,1710885094811,-500.0,0.00031506,2]
[319596617,1710885094821,-500.0,0.00031506,2]
[319596618,1710885094831,-783.57,0.00031506,2]
[319596619,1710885094842,-507.2,0.00031506,2]
[319596620,1710885094852,-1022.89,0.00031506,2]
[319596621,1710885094862,-668.88,0.00031506,2]
[319596622,1710885094872,-500.0,0.00031506,2]
[319596623,1710885094881,-500.0,0.00031506,2]
[319596624,1710885094892,-597.77,0.00031506,2]
[319596625,1710885094901,-500.0,0.00031506,2]
[319596626,1710885094911,-500.0,0.00031506,2]
[319596627,1710885094921,-500.0,0.00031506,2]
[319596628,1710885094930,-1578.12,0.00031506,2]
[319596629,1710885094940,-1317.95,0.00031506,2]
[319596630,1710885094950,-500.0,0.00031506,2]
[319596631,1710885094959,-500.0,0.00031506,2]
[319596632,1710885094970,-500.0,0.00031506,2]
[319596633,1710885094979,-706.81,0.00031506,2]
[319596634,1710885094989,-500.0,0.00031506,2]
[319596635,1710885094999,-500.0,0.00031506,2]
[319596636,1710885095008,-820.72,0.00031506,2]
[319596637,1710885095018,-511.35,0.00031506,2]
[319596638,1710885095028,-500.0,0.00031506,2]
[319596639,1710885095037,-1159.47,0.00031506,2]
[319596640,1710885095047,-752.64,0.00031506,2]
[319596641,1710885095057,-1433.6,0.00031506,2]
[319596642,1710885095068,-500.0,0.00031506,2]
[319596643,1710885095078,-500.0,0.00031506,2]
[319596644,1710885095090,-500.0,0.00031506,2]
[319596645,1710885095100,-500.0,0.00031506,2]
[319596646,1710885095110,-1189.27,0.00031506,2]
[319596647,1710885095120,-500.0,0.00031506,2]
[319596648,1710885095130,-500.0,0.00031506,2]
[319596649,1710885095140,-572.14,0.00031506,2]
[319596650,1710885095150,-1127.91,0.00031506,2]
[319596651,1710885095160,-729.46,0.00031506,2]
[319596652,1710885095170,-500.0,0.00031506,2]
[319596653,1710885095181,-500.0,0.00031506,2]
[319596654,1710885095190,-1199.62,0.00031506,2]
[319596655,1710885095201,-562.99,0.00031506,2]
[319596656,1710885095211,-786.3,0.00031506,2]
[319596657,1710885095221,-500.0,0.00031506,2]
[319596658,1710885095231,-500.0,0.00031506,2]
[319596659,1710885095242,-1265.95,0.00031506,2]
[319596660,1710885095252,-580.29,0.00031506,2]
[319596661,1710885095263,-500.0,0.00031506,2]
[319596662,1710885095274,-500.0,0.00031506,2]
[319596663,1710885095285,-161.94242211,0.00031506,2]
[319596664,1710885095295,-500.0,0.00031506,2]
[319596665,1710885095306,-718.68,0.00031506,2]
[319596666,1710885095317,-2136.15,0.00031506,2]
[319596667,1710885095327,-928.05,0.00031506,2]
[319596668,1710885095338,-500.0,0.00031506,2]
[319596669,1710885095349,-783.9,0.00031506,2]
[319596670,1710885095359,-1320.02,0.00031506,2]
[319596671,1710885095376,-1043.02,0.00031506,2]
[319596672,1710885095386,-802.08,0.00031506,2]
[319596673,1710885095397,-500.0,0.00031506,2]
[319596674,1710885095407,-500.0,0.00031506,2]
[319596675,1710885095418,-1028.49,0.00031506,2]
[319596676,1710885095428,-1179.51,0.00031506,2]
[319596677,1710885095438,-812.3,0.00031506,2]
[319596678,1710885095448,-1146.04,0.00031506,2]
[319596679,1710885095462,-500.0,0.00031506,2]
[319596680,1710885095472,-500.0,0.00031506,2]
[319596681,1710885095482,-1045.71,0.00031506,2]
[319596682,1710885095492,-500.0,0.00031506,2]
[319596683,1710885095502,-500.0,0.00031506,2]
[319596684,1710885095512,-530.67,0.00031506,2]
[319596685,1710885095523,-649.64,0.00031506,2]
[319596686,1710885095534,-500.0,0.00031506,2]
[319596687,1710885095544,-500.0,0.00031506,2]
[319596688,1710885095555,-500.0,0.00031506,2]
[319596689,1710885095565,-500.0,0.00031506,2]
[319596690,1710885095576,-500.0,0.00031506,2]
[319596691,1710885095586,-500.0,0.00031506,2]
[319596692,1710885095598,-500.0,0.00031506,2]
[319596693,1710885095609,-775.28,0.00031506,2]
[319596694,1710885095619,-897.58,0.00031506,2]
[319596695,1710885095631,-1675.73,0.00031506,2]
[319596696,1710885095641,-500.0,0.00031506,2]
[319596697,1710885095651,-937.79,0.00031506,2]
[319596698,1710885095661,-500.0,0.00031506,2]
[319596699,1710885095671,-734.15,0.00031506,2]
[319596700,1710885095681,-500.0,0.00031506,2]
[319596701,1710885095691,-1431.93,0.00031506,2]
[319596702,1710885095702,-530.51,0.00031506,2]
[319596703,1710885095712,-1508.78,0.00031506,2]
[319596704,1710885095723,-500.0,0.00031506,2]
[319596705,1710885095733,-500.0,0.00031506,2]
[319596706,1710885095743,-500.0,0.00031506,2]
[319596707,1710885095753,-500.0,0.00031506,2]
[319596708,1710885095764,-500.0,0.00031506,2]
[319596709,1710885095775,-473.82912124,0.00031506,2]
[319596710,1710885095785,-621.71,0.00031506,2]
[319596711,1710885095795,-3024.0,0.00031506,2]
[319596712,1710885095806,-571.47,0.00031506,2]
[319596713,1710885095816,-500.0,0.00031506,2]
[319596714,1710885095826,-538.79,0.00031506,2]
[319596715,1710885095837,-762.86,0.00031506,2]
[319596716,1710885095849,-985.89,0.00031506,2]
[319596717,1710885095860,-1947.91,0.00031506,2]
[319596718,1710885095870,-863.2,0.00031506,2]
[319596719,1710885095881,-500.0,0.00031506,2]
[319596720,1710885095891,-500.0,0.00031506,2]
[319596721,1710885095901,-747.16,0.00031506,2]
[319596722,1710885095911,-538.79,0.00031506,2]
[319596723,1710885095922,-772.61,0.00031506,2]
[319596724,1710885095932,-500.0,0.00031506,2]
[319596725,1710885095942,-500.0,0.00031506,2]
[319596726,1710885095953,-500.0,0.00031506,2]
[319596727,1710885095963,-256.94631978,0.00031506,2]
[319596728,1710885095972,-1767.34,0.00031506,2]
[319596729,1710885095982,-500.0,0.00031506,2]
[319596730,1710885095993,-500.0,0.00031506,2]
[319596731,1710885096003,-1603.73,0.00031506,2]
[319596732,1710885096013,-500.0,0.00031506,2]
[319596733,1710885096024,-500.0,0.00031506,2]
[319596734,1710885096034,-500.0,0.00031506,2]
[319596735,1710885096044,-892.48,0.00031506,2]
[319596736,1710885096054,-1478.75,0.00031506,2]
[319596737,1710885096064,-654.11,0.00031506,2]
[319596738,1710885096074,-500.0,0.00031506,2]
[319596739,1710885096084,-500.0,0.00031506,2]
[319596740,1710885096096,-1208.68,0.00031506,2]
[319596741,1710885096106,-500.0,0.00031506,2]
[319596742,1710885096117,-386.85204333,0.00031506,2]
[319596743,1710885096127,-1477.07,0.00031506,2]
[319596744,1710885096137,-1428.4,0.00031506,2]
[319596745,1710885096147,-500.0,0.00031506,2]
[319596746,1710885096158,-526.9,0.00031506,2]
[319596747,1710885096168,-2930.57,0.00031506,2]
[319596748,1710885096179,-500.0,0.00031506,2]
[319596749,1710885096189,-948.83,0.00031506,2]
[319596750,1710885096200,-500.0,0.00031506,2]
[319596751,1710885096210,-500.0,0.00031506,2]
[319596752,1710885096221,-1084.77,0.00031506,2]
[319596753,1710885096231,-500.0,0.00031506,2]
[319596754,1710885096241,-404.49834222,0.00031506,2]
[319596755,1710885096251,-500.0,0.00031506,2]
[319596756,1710885096261,-500.0,0.00031506,2]
[319596757,1710885096272,-1970.31,0.00031506,2]
[319596758,1710885096282,-1046.29,0.00031506,2]
[319596759,1710885096292,-853.25,0.00031506,2]
[319596760,1710885096303,-748.56,0.00031506,2]
[319596761,1710885096312,-608.95,0.00031506,2]
[319596762,1710885096323,-500.0,0.00031506,2]
[319596763,1710885096334,-636.98,0.00031506,2]
[319596764,1710885096345,-500.0,0.00031506,2]
[319596765,1710885096356,-500.0,0.00031506,2]
[319596766,1710885096366,-1279.27,0.00031506,2]
[319596767,1710885096378,-1827.01,0.00031506,2]
[319596768,1710885096388,-500.0,0.00031506,2]
[319596769,1710885096398,-500.0,0.00031506,2]
[319596770,1710885096408,-1006.11,0.00031506,2]
[319596771,1710885096419,-500.0,0.00031506,2]
[319596772,1710885096429,-500.0,0.00031506,2]
[319596773,1710885096439,-1949.93,0.00031506,2]
[319596774,1710885096450,-500.0,0.00031506,2]
[319596775,1710885096463,-1192.24,0.00031506,2]
[319596776,1710885096474,-2813.53,0.00031506,2]
[319596777,1710885096484,-845.98,0.00031506,2]
[319596778,1710885096494,-1011.35,0.00031506,2]
[319596779,1710885096506,-1701.68,0.00031506,2]
[319596780,1710885096516,-1413.56,0.00031506,2]
[319596781,1710885096525,-500.0,0.00031506,2]
[319596782,1710885096536,-671.21,0.00031506,2]
[319596783,1710885096547,-856.2,0.00031506,2]
[319596784,1710885096557,-500.0,0.00031506,2]
[319596785,1710885096567,-1896.31,0.00031506,2]
[319596786,1710885096578,-500.0,0.00031506,2]
[319596787,1710885096589,-2782.61,0.00031506,2]
[319596788,1710885096600,-500.0,0.00031506,2]
[319596789,1710885096611,-500.0,0.00031506,2]
[319596790,1710885096622,-609.95,0.00031506,2]
[319596791,1710885096634,-500.0,0.00031506,2]
[319596792,1710885096644,-1536.94,0.00031506,2]
[319596793,1710885096656,-2552.49,0.00031506,2]
[319596794,1710885096666,-500.0,0.00031506,2]
[319596795,1710885096680,-2081.49,0.00031506,2]
[319596796,1710885096691,-500.0,0.00031506,2]
[319596797,1710885096703,-1715.16,0.00031506,2]
[319596798,1710885096717,-500.0,0.00031506,2]
[319596799,1710885096727,-1266.65,0.00031506,2]
[319596800,1710885096739,-1645.88,0.00031506,2]
[319596801,1710885096749,-500.0,0.00031506,2]
[319596802,1710885096760,-500.0,0.00031506,2]
[319596803,1710885096770,-500.0,0.00031506,2]
[319596804,1710885096782,-500.0,0.00031506,2]
[319596805,1710885096793,-500.0,0.00031506,2]
[319596806,1710885096805,-1784.06,0.00031506,2]
[319596807,1710885096821,-1425.44,0.00031506,2]
[319596808,1710885096832,-645.99,0.00031506,2]
[319596809,1710885096844,-500.0,0.00031506,2]
[319596810,1710885096855,-500.0,0.00031506,2]
[319596811,1710885096866,-500.0,0.00031506,2]
[319596812,1710885096878,-856.99,0.00031506,2]
[319596813,1710885096889,-1509.6,0.00031506,2]
[319596814,1710885096900,-500.0,0.00031506,2]